bitfinex-derivatives/quotes_ETHF0:USTF0_20220103
["timestamp","ask_amount","ask_price","bid_price","bid_amount"]
[1641249770883,2.00479,3759.2,3758.4,2.790659]
[1641249771084,1.33005077,3759.1,3758.4,2.790659]
[1641249772488,1.33005077,3759.1,3758.3,2.00479]
[1641249774089,1.33005077,3759.1,3758.4,0.03003747]
[1641249776990,2.21331716,3759.1,3758.4,0.03003747]
[1641249777593,0.88326639,3759.1,3758.4,0.03003747]
[1641249778395,1.33017815,3758.7,3758.4,0.03003747]
[1641249778593,0.229991,3758.6,3758.4,0.03003747]
[1641249780293,0.229991,3758.6,3758.0,0.03003747]
[1641249780493,0.229991,3758.6,3758.5,0.03003747]
[1641249780693,0.229991,3758.6,3757.9,0.96693901]
[1641249780694,0.229991,3758.6,3758.1,0.03003747]
[1641249780893,0.229991,3758.6,3758.5,0.03003747]
[1641249781095,0.229991,3758.6,3758.2,0.03003747]
[1641249781295,2.00479,3758.4,3758.2,0.03003747]
[1641249781495,2.00479,3758.4,3757.9,0.96693901]
[1641249781695,1.33036219,3758.2,3757.9,0.96693901]
[1641249781895,2.00479,3758.4,3757.9,0.96693901]
[1641249784597,1.33032326,3758.3,3757.9,0.96693901]
[1641249785495,2.00479,3758.0,3757.9,0.96693901]
[1641249786598,2.234781,3758.0,3757.9,0.96693901]
[1641249786798,2.00479,3758.0,3757.9,0.96693901]
[1641249787198,0.20232116,3758.0,3757.9,0.96693901]
[1641249788000,0.43231216,3758.0,3757.9,0.96693901]
[1641249788398,0.43231216,3758.0,3757.4,2.67265561]
[1641249789701,0.43231216,3758.0,3757.4,2.00479]
[1641249789900,1.33054982,3757.7,3757.4,2.00479]
[1641249790101,0.229991,3757.6,3757.4,2.00479]
[1641249790502,0.786,3757.7,3757.4,2.00479]
[1641249791204,0.229991,3757.6,3757.4,2.00479]
[1641249792604,0.229991,3757.6,3757.4,1e-08]
[1641249792804,0.229991,3757.6,3756.6,3.639643]
[1641249793002,0.229991,3757.6,3756.6,2.790659]
[1641249793603,2.00479,3757.0,3756.6,2.790659]
[1641249794308,2.00479,3757.0,3756.5,2.790659]
[1641249794505,24.62328977,3756.8,3756.5,2.790659]
[1641249794909,25.12878977,3756.8,3756.5,2.790659]
[1641249795916,25.12878977,3756.8,3756.2,2.790659]
[1641249796516,25.12878977,3756.8,3756.3,0.03005036]
[1641249798520,25.12878977,3756.8,3756.2,0.03005036]
[1641249798722,25.12878977,3756.8,3756.4,0.03005036]
[1641249799119,25.12878977,3756.8,3756.3,0.03005036]
[1641249799320,25.12878977,3756.8,3756.5,0.03005036]
[1641249799619,25.12878977,3756.8,3756.6,0.03005036]
[1641249800022,25.12878977,3756.8,3756.7,0.9552064]
[1641249800424,25.35878077,3756.8,3756.7,0.98525676]
[1641249800721,25.35878077,3756.8,3756.7,0.03005036]
[1641249801320,25.35878077,3756.8,3756.3,0.03005036]
[1641249801520,25.35878077,3756.8,3756.7,0.03005036]
[1641249801720,25.35878077,3756.8,3756.4,0.03005036]
[1641249801923,25.35878077,3756.8,3756.7,0.03005036]
[1641249802121,25.35878077,3756.8,3756.2,1.13697345]
[1641249802122,25.35878077,3756.8,3756.5,0.03005036]
[1641249802320,23.3256027,3756.8,3756.7,0.03005036]
[1641249802523,23.3256027,3756.8,3756.6,0.03005036]
[1641249802920,23.3256027,3756.8,3756.2,1.13697345]
[1641249802921,23.3256027,3756.8,3756.7,0.03005036]
[1641249803422,23.3256027,3756.8,3756.3,0.03005036]
[1641249803622,2.00479,3756.6,3756.3,0.03005036]
[1641249804423,0.229991,3756.5,3756.3,0.03005036]
[1641249807131,1.1289375,3756.4,3755.8,0.03005036]
[1641249807328,1.1289375,3756.4,3755.4,2.00479]
[1641249807828,2.00479,3756.1,3755.4,2.00479]
[1641249811235,3.0,3755.9,3755.4,2.00479]
[1641249811431,3.02235977,3755.7,3755.4,2.00479]
[1641249811730,0.229991,3755.6,3754.9,2.00479]
[1641249813031,1.33146219,3755.1,3754.9,2.00479]
[1641249813230,0.229991,3755.0,3754.9,2.00479]
[1641249815434,1.729991,3755.0,3752.6,1.5]
[1641249815636,5.32681192,3754.6,3752.5,1.5]
[1641249815835,2.00479,3753.1,3752.3,16.57959]
[1641249816037,2.00479,3753.1,3752.3,2.00479]
[1641249816038,2.82869,3753.1,3752.3,2.00479]
[1641249818740,25.72563714,3752.4,3752.3,2.00479]
[1641249818936,25.95562814,3752.4,3752.3,2.00479]
[1641249819738,25.95562814,3752.4,3751.9,2.00479]
[1641249820140,25.95562814,3752.4,3750.9,1.5]
[1641249820438,24.15088698,3752.4,3750.9,1.5]
[1641249821039,24.15088698,3752.4,3750.7,4.02262851]
[1641249821242,24.15088698,3752.4,3750.7,2.8322054]
[1641249821739,24.15088698,3752.4,3750.7,3.3369954]
[1641249821740,2.00479,3751.6,3750.7,3.3369954]
[1641249821941,1.33282331,3751.1,3750.7,2.00479]
[1641249822140,2.67079,3751.6,3750.7,2.00479]
[1641249822343,2.67079,3751.6,3750.8,0.0300961]
[1641249823145,1.3328766,3751.0,3750.8,0.0300961]
[1641249823345,0.229991,3750.9,3750.1,0.0300961]
[1641249823544,0.229991,3750.9,3750.0,2.790659]
[1641249823747,2.00479,3750.5,3750.2,1.628157]
[1641249823946,2.63529,3750.5,3749.9,1.5]
[1641249824144,2.63529,3750.5,3749.6,2.58418855]
[1641249825146,2.63529,3750.5,3749.8,2.790659]
[1641249825845,2.00479,3750.1,3749.9,1.5]
[1641249826045,9e-05,3750.1,3749.9,1.5]
[1641249826546,1.3328766,3751.0,3749.9,1.5]
[1641249826845,1.3328766,3751.0,3750.3,1.5]
[1641249827049,1.3328766,3751.0,3749.9,1.5]
[1641249827247,1.3328766,3751.0,3750.0,1.5]
[1641249827447,1.3328766,3751.0,3749.9,2.790659]
[1641249827747,1.18650533,3751.1,3750.4,2.00479]
[1641249827946,1.18650533,3751.1,3750.4,3.50479]
[1641249828546,1.18650533,3751.1,3750.4,2.00479]
[1641249828746,0.12052907,3750.9,3750.4,3.50479]
[1641249828949,0.12052907,3750.9,3750.5,1.16815208]
[1641249829146,1.18650533,3751.1,3750.6,0.128157]
[1641249829748,1.18650533,3751.1,3750.8,3.50479]
[1641249830149,2.00479,3751.5,3750.8,3.50479]
[1641249830650,2.00479,3751.5,3751.2,1.5]
[1641249830850,2.00479,3751.5,3751.2,2.83149083]
[1641249831252,2.00479,3751.5,3751.2,1.33149083]
[1641249831453,2.00479,3751.9,3751.4,1.5]
[1641249831751,2.00479,3751.9,3751.5,0.128157]
[1641249832452,2.00479,3752.4,3751.5,0.128157]
[1641249832654,2.00479,3752.4,3752.0,1.5]
[1641249832853,2.00479,3752.4,3752.0,2.279]
[1641249834055,2.00479,3752.4,3752.1,1.04274329]
[1641249834252,2.00479,3753.0,3752.1,1.04274329]
[1641249834453,15.0857,3753.7,3752.5,1.5]
[1641249834653,15.0857,3753.7,3752.7,1.5]
[1641249834854,15.0857,3753.7,3752.9,1.5]
[1641249835055,1.33176895,3754.1,3753.0,0.128157]
[1641249835856,1.33176895,3754.1,3754.0,4.00958]
[1641249836857,50.46079,3755.2,3754.0,4.00958]
[1641249837057,1.33165545,3754.4,3754.0,4.87537034]
[1641249837259,1.33165545,3754.4,3754.1,0.128157]
[1641249837458,1.33165544,3754.8,3754.1,0.128157]
[1641249837660,1.3315597,3754.7,3754.1,0.128157]
[1641249837859,0.15039993,3754.7,3754.1,0.128157]
[1641249838062,17.93829,3755.2,3754.1,0.128157]
[1641249838762,17.93829,3755.2,3754.2,0.03007459]
[1641249839363,15.9335,3755.2,3754.2,0.03007459]
[1641249839762,15.9335,3755.2,3754.9,2.00479]
[1641249839968,1.33121227,3755.7,3755.0,0.88853258]
[1641249840163,1.33121227,3755.7,3755.0,1.04676417]
[1641249840565,1.33121227,3755.7,3755.1,0.03007459]
[1641249840766,2.05409301,3756.0,3755.1,0.03007459]
[1641249844270,1.33125835,3755.6,3755.1,0.03007459]
[1641249845369,1.33113607,3755.9,3755.1,0.03007459]
[1641249845771,1.5,3755.7,3755.1,0.03007459]
[1641249845972,2.83121227,3755.7,3755.5,2.00479]
[1641249846670,2.83121227,3755.7,3755.6,0.03007459]
[1641249847473,1.56120327,3755.7,3755.6,0.03007459]
[1641249850175,1.33121227,3755.7,3755.6,0.03007459]
[1641249850374,1.56120327,3755.7,3755.6,0.03007459]
[1641249850575,1.33121227,3755.7,3755.6,0.03007459]
[1641249851476,1.56120327,3755.7,3755.6,0.03007459]
[1641249851675,1.33121227,3755.7,3755.6,0.03007459]
[1641249852179,1.56120327,3755.7,3755.6,0.03007459]
[1641249852374,1.33121227,3755.7,3755.6,0.03007459]
[1641249853076,3.33582862,3756.2,3755.6,0.03007459]
[1641249853375,2.00479,3756.2,3755.6,0.03007459]
[1641249853775,0.1503414,3756.1,3755.6,0.03007459]
[1641249853976,1.33098193,3756.3,3755.6,0.03007459]
[1641249855379,49.73004617,3756.7,3755.6,0.03007459]
[1641249855580,34.92264617,3756.7,3755.6,0.03007459]
[1641249855781,0.1503335,3756.6,3755.6,0.03007459]
[1641249861881,0.14107701,3756.5,3755.6,0.03007459]
[1641249862082,1.18650533,3755.8,3755.6,0.03007459]
[1641249864788,1.18650533,3755.7,3755.6,0.03007459]
[1641249873099,1.48313166,3755.9,3755.6,0.03007459]
[1641249877507,1.20256017,3755.7,3755.6,0.03007459]
[1641249878614,18.18409,3757.0,3755.6,0.03007459]
[1641249879211,0.15032829,3756.6,3755.6,0.03007459]
[1641249890633,1.20256017,3755.8,3755.6,0.03007459]
[1641249891632,1.43255117,3755.8,3755.6,0.03007459]
[1641249891832,1.20256017,3755.8,3755.6,0.03007459]
[1641249892434,1.20256017,3755.8,3755.7,2.00479]
[1641249892835,1.20256017,3755.8,3755.7,2.03486459]
[1641249893236,1.20256017,3756.2,3755.7,2.03486459]
[1641249893737,1.20256017,3756.2,3755.8,0.03007459]
[1641249894637,1.20256017,3756.2,3756.1,2.00479]
[1641249894835,1.43255117,3756.2,3756.1,2.00479]
[1641249895036,1.43255117,3756.2,3756.1,2.03486459]
[1641249895737,1.57360973,3756.2,3756.1,2.03486459]
[1641249896539,0.14105856,3756.2,3756.1,2.03486459]
[1641249897539,0.37104956,3756.2,3756.1,2.03486459]
[1641249897942,0.229991,3756.2,3756.1,2.03486459]
[1641249898142,1.48313166,3756.4,3756.1,2.03486459]
[1641249898342,0.229991,3756.3,3756.1,2.03486459]
[1641249898541,0.229991,3756.3,3756.2,0.03007459]
[1641249899344,0.229991,3756.3,3755.9,0.03007459]
[1641249899545,0.229991,3756.3,3756.2,2.03486459]
[1641249899745,0.229991,3756.3,3756.2,2.00479]
[1641249899945,0.229991,3756.3,3756.2,2.03486459]
[1641249900947,1.48313166,3756.5,3756.2,2.03486459]
[1641249901547,1.48313166,3756.5,3756.3,0.03007459]
[1641249901747,0.229991,3756.5,3756.3,0.03007459]
[1641249903850,15.4697,3756.7,3756.3,0.03007459]
[1641249904050,3.10182499,3756.9,3756.3,0.03007459]
[1641249904251,1.77105206,3756.7,3756.3,0.03007459]
[1641249905452,1.77105206,3756.7,3756.6,2.00479]
[1641249905854,1.77105206,3756.7,3756.6,2.16302159]
[1641249906456,2.00104306,3756.7,3756.6,2.03486459]
[1641249907058,1.77105206,3756.7,3756.6,2.03486459]
[1641249907554,2.00104306,3756.7,3756.6,2.03486459]
[1641249907953,1.77105206,3756.7,3756.6,2.03486459]
[1641249908453,2.00104306,3756.7,3756.6,2.03486459]
[1641249908654,1.77105206,3756.7,3756.6,2.03486459]
[1641249909456,2.00104306,3756.7,3756.6,2.03486459]
[1641249909657,1.77105206,3756.7,3756.6,2.03486459]
[1641249910260,1.33077293,3756.9,3756.6,2.03486459]
[1641249910459,0.229991,3756.8,3756.6,2.03486459]
[1641249910660,0.229991,3756.8,3756.7,0.03007459]
[1641249911164,1.33077293,3756.9,3756.7,0.03007459]
[1641249912360,0.229991,3756.8,3756.7,0.03007459]
[1641249914365,1.33077293,3756.9,3756.7,0.03007459]
[1641249915365,0.14285585,3756.8,3756.7,0.03007459]
[1641249916165,0.37284685,3756.8,3756.7,0.03007459]
[1641249916566,0.14285585,3756.8,3756.7,0.03007459]
[1641249916968,1.77105206,3757.2,3756.7,0.03007459]
[1641249917167,1.77105206,3757.2,3756.7,0.76287459]
[1641249917566,1.49971547,3757.1,3756.8,0.03007459]
[1641249917768,1.49971547,3757.1,3756.9,1.21489007]
[1641249918367,1.49971547,3757.1,3757.0,0.03007459]
[1641249919170,18.2865744,3757.7,3757.0,0.03007459]
[1641249919171,16.0376,3757.7,3757.0,0.03007459]
[1641249919571,16.0376,3757.7,3757.3,2.00479]
[1641249919770,1.49971547,3757.8,3757.4,0.128157]
[1641249919971,1.49971547,3757.8,3757.4,0.15823159]
[1641249920170,1.49971547,3757.9,3757.5,0.03007459]
[1641249921475,2.83014846,3757.9,3757.5,0.03007459]
[1641249921674,15.7687,3758.0,3757.5,0.03007459]
[1641249921876,0.1502769,3757.8,3757.5,0.03007459]
[1641249922073,0.229991,3757.7,3757.5,0.03007459]
[1641249922274,0.1502769,3757.9,3757.5,0.03007459]
[1641249922473,15.7687,3758.0,3757.5,0.03007459]
[1641249922674,0.15027561,3757.8,3757.5,0.03007459]
[1641249923175,15.7687,3758.0,3757.5,0.03007459]
[1641249923776,0.15027544,3757.9,3757.5,0.03007459]
[1641249925977,17.26841547,3758.0,3757.5,0.03007459]
[1641249926377,0.15027106,3757.9,3757.5,0.03007459]
[1641249926578,17.26841547,3758.0,3757.5,0.03007459]
[1641249927382,15.7687,3758.0,3757.5,0.03007459]
[1641249927678,15.7687,3758.0,3757.9,2.00479]
[1641249927878,0.229991,3758.0,3757.9,2.00479]
[1641249928078,0.15026832,3758.0,3757.9,2.03486459]
[1641249928677,0.229991,3758.0,3757.9,2.03486459]
[1641249929682,1.49971547,3758.2,3757.9,2.03486459]
[1641249930183,1.49971547,3758.2,3758.0,0.03007459]
[1641249930883,1.49971547,3758.4,3758.0,0.03007459]
[1641249931382,0.15026273,3758.3,3758.0,0.03007459]
[1641249932087,1.49971547,3758.4,3758.0,0.03007459]
[1641249932684,1.77105206,3758.7,3758.0,0.03007459]
[1641249932885,1.49971547,3758.9,3758.2,1.5]
[1641249933084,1.49971547,3758.9,3758.3,0.128157]
[1641249933289,1.49971547,3758.9,3758.3,0.751057]
[1641249933586,1.49971547,3758.9,3758.3,2.28113159]
[1641249933786,1.49971547,3758.9,3758.8,4.00958]
[1641249934285,1.49971547,3758.9,3758.8,4.03965459]
[1641249934688,1.77105206,3759.2,3758.8,4.03965459]
[1641249934887,1.19754258,3759.2,3758.8,4.03965459]
[1641249935086,1.19754258,3759.2,3758.9,1.11109926]
[1641249935290,1.19754258,3759.2,3758.9,1.14117385]
[1641249935488,1.19754258,3759.2,3759.0,0.03007459]
[1641249935687,1.19754258,3759.2,3759.1,0.128157]
[1641249936087,1.19754258,3759.2,3759.1,0.15823159]
[1641249936687,1.19754258,3759.3,3759.1,0.15823159]
[1641249937394,1.19754258,3759.3,3759.2,0.03007459]
[1641249937589,1.19754258,3759.4,3759.2,0.03007459]
[1641249937789,1.19754258,3759.4,3759.3,2.00479]
[1641249938392,1.19754258,3759.4,3759.3,2.03486459]
[1641249940294,1.19754258,3759.5,3759.3,2.03486459]
[1641249940693,1.19754258,3759.5,3759.4,0.03007459]
[1641249942096,1.19754258,3759.9,3759.4,0.03007459]
[1641249942294,1.19754258,3759.9,3759.5,0.77761574]
[1641249942599,1.19754258,3759.9,3759.6,0.03007459]
[1641249942995,1.33863704,3760.1,3759.6,0.03007459]
[1641249943794,1.33863704,3760.1,3760.0,2.00479]
[1641249944196,1.33863704,3760.1,3760.0,2.16302159]
[1641249944397,0.14109446,3760.1,3760.0,2.16302159]
[1641249945499,1.19754258,3760.2,3760.0,2.16302159]
[1641249945799,1.33863704,3760.3,3760.0,2.16302159]
[1641249945998,1.33863704,3760.3,3760.2,2.00479]
[1641249946398,1.19754258,3760.3,3760.2,2.03486459]
[1641249947801,1.19754258,3760.5,3760.2,2.03486459]
[1641249948302,1.19754258,3760.5,3760.3,0.03007459]
[1641249949002,0.229991,3760.4,3760.3,0.03007459]
[1641249949203,1.19754258,3760.5,3760.3,0.03007459]
[1641249950003,17.73599,3761.3,3760.3,0.03007459]
[1641249950608,0.15015716,3761.1,3760.3,0.03007459]
[1641249951907,0.15015716,3761.1,3760.7,2.00479]
[1641249952409,0.15015716,3761.1,3760.8,0.15823159]
[1641249952709,0.229991,3761.0,3760.8,0.15823159]
[1641249952907,0.38014816,3761.0,3760.9,0.03007459]
[1641249953109,0.229991,3761.0,3760.9,0.03007459]
[1641249954009,0.229991,3761.0,3760.9,2.03486459]
[1641249954407,0.5783,3761.4,3760.9,2.03486459]
[1641249954608,1.32906968,3761.7,3760.9,2.03486459]
[1641249955011,1.32906968,3761.7,3761.0,0.03007459]
[1641249956109,1.32906968,3761.7,3761.4,2.00479]
[1641249956312,0.229991,3761.6,3761.4,2.00479]
[1641249959615,1.32906968,3761.7,3761.4,2.00479]
[1641249961417,1.32906968,3761.7,3761.5,0.03002886]
[1641249961618,1.32906968,3761.7,3761.6,0.128157]
[1641249962524,0.229991,3761.7,3761.6,0.128157]
[1641249962922,30.7148,3762.0,3761.6,0.15818505]
[1641249963122,15.1889,3762.0,3761.6,0.15818505]
[1641249963323,14.9036,3762.1,3761.6,0.128157]
[1641249964925,1.32900786,3761.9,3761.6,0.128157]
[1641249965124,14.9036,3762.1,3761.6,0.128157]
[1641249965326,14.9036,3762.1,3761.7,0.0300282]
[1641249966022,1.3288701,3762.3,3761.7,0.0300282]
[1641249966227,1.32879241,3762.5,3762.2,2.00479]
[1641249966425,0.229991,3762.4,3762.2,2.00479]
[1641249966623,1.32879241,3762.5,3762.2,2.00479]
[1641249967025,1.5,3762.3,3762.2,2.00479]
[1641249967225,2.418091,3762.3,3762.2,2.00479]
[1641249968127,2.418091,3762.3,3762.2,4.00958]
[1641249968331,2.56821785,3762.3,3762.2,3.49746887]
[1641249968932,1.06821785,3762.3,3762.2,3.49746887]
[1641249969135,0.83822685,3762.3,3762.2,3.49746887]
[1641249969434,1.06821785,3762.3,3762.2,3.49746887]
[1641249970538,0.83822685,3762.3,3762.2,3.49746887]
[1641249970736,0.15012685,3762.3,3762.2,3.49746887]
[1641249971336,0.15012685,3762.4,3762.2,3.49746887]
[1641249971535,0.38011785,3762.4,3762.2,3.49746887]
[1641249971736,0.15012685,3762.3,3762.2,3.49746887]
[1641249978948,3.23179765,3762.3,3762.2,3.49746887]
[1641249979147,4.05819765,3762.3,3762.2,3.49746887]
[1641249980251,1.11589728,3762.3,3762.2,3.49746887]
[1641249980747,0.28949728,3762.3,3762.2,3.49746887]
[1641249981150,3.23179765,3762.3,3762.2,3.49746887]
[1641249983949,3.23179765,3762.3,3762.2,2.63163035]
[1641249984651,3.23179765,3762.3,3762.2,2.66165321]
[1641249985051,3.23179765,3762.3,3762.2,2.63163035]
[1641249985858,0.28949728,3762.3,3762.2,2.63163035]
[1641249986955,1.78298141,3762.3,3762.2,2.63163035]
[1641249989360,1.78298141,3762.3,3761.6,0.128157]
[1641249989961,0.15012685,3762.2,3761.7,0.03002461]
[1641249990161,1.19482299,3762.0,3761.7,0.03002461]
[1641249990462,0.38011785,3761.9,3761.7,0.03002461]
[1641249990962,0.15012685,3761.8,3761.7,0.03002461]
[1641249991263,0.229991,3761.7,3759.5,1.32909971]
[1641249991465,1.5,3761.5,3759.3,0.3996]
[1641249991668,2.0565,3761.5,3759.6,0.03002877]
[1641249992067,1.5,3761.3,3759.3,0.3996]
[1641249992265,1.5,3761.1,3759.7,0.0300309]
[1641249992667,2.15494448,3761.0,3760.1,2.00479]
[1641249992965,2.15494448,3761.0,3760.2,0.128157]
[1641249993166,0.15015448,3760.9,3760.2,0.1581879]
[1641249993365,0.15015448,3760.9,3760.3,0.0300309]
[1641249994566,1.32943543,3760.7,3760.2,0.0300309]
[1641249994768,1.5,3760.6,3760.4,0.0300309]
[1641249994967,0.229991,3760.5,3760.1,2.00479]
[1641249995967,0.15017188,3760.4,3760.2,0.03003438]
[1641249996169,0.229991,3760.3,3760.2,0.03003438]
[1641249996367,0.15017188,3760.4,3760.2,0.03003438]
[1641249996568,1.5,3760.6,3760.2,0.03003438]
[1641249996972,0.15017162,3760.5,3760.2,0.03003438]
[1641249997170,0.229991,3760.4,3760.2,0.03003438]
[1641249998373,0.229991,3760.4,3760.1,2.00479]
[1641249998571,0.229991,3760.4,3760.3,0.03003426]
[1641249998972,0.229991,3760.4,3760.2,0.03003426]
[1641249999173,0.38016378,3760.4,3760.3,0.03003426]
[1641249999372,0.229991,3760.4,3760.3,0.03003426]
[1641249999576,0.229991,3760.4,3760.2,0.03003426]
[1641249999774,0.38016299,3760.4,3760.2,0.03003426]
[1641249999974,0.38016299,3760.4,3760.3,0.03003426]
[1641250000175,0.229991,3760.4,3760.3,0.03003426]
[1641250000374,0.38016387,3760.4,3760.2,0.03003426]
[1641250000576,2.63356387,3760.4,3760.2,0.03003426]
[1641250000775,2.63356387,3760.4,3760.3,0.03003426]
[1641250000978,2.483391,3760.4,3760.3,0.03003426]
[1641250001188,2.483391,3760.4,3759.8,0.03003426]
[1641250001376,1.5,3760.1,3759.7,2.00479]
[1641250002379,3.0,3760.1,3759.2,2.00479]
[1641250002577,4.22138847,3759.9,3758.5,0.7371512]
[1641250002777,2.00479,3759.0,3758.5,0.7371512]
[1641250002979,2.00479,3759.0,3758.5,0.8653082]
[1641250011795,0.13343459,3758.9,3758.5,0.8653082]
[1641250013396,0.13343459,3758.9,3758.5,0.7371512]
[1641250015499,2.00479,3759.0,3758.5,0.7371512]
[1641250016501,1.19482299,3759.1,3758.6,0.0300394]
[1641250016699,0.13344457,3758.9,3758.6,0.0300394]
[1641250017099,2.00479,3758.7,3758.6,0.0300394]
[1641250017700,2.234781,3758.7,3758.6,0.0300394]
[1641250018302,2.00479,3758.7,3758.6,0.0300394]
[1641250018703,2.234781,3758.7,3758.6,0.0300394]
[1641250020514,2.00479,3758.7,3758.6,0.0300394]
[1641250021604,2.234781,3758.7,3758.6,0.0300394]
[1641250021805,2.00479,3758.7,3758.6,0.0300394]
[1641250022707,3.734781,3758.7,3758.1,0.0300394]
[1641250022906,3.734781,3758.7,3758.6,0.0300394]
[1641250023112,3.734781,3758.7,3757.5,2.00479]
[1641250023708,5.06491315,3758.7,3757.5,2.00479]
[1641250024107,3.734781,3758.7,3757.5,2.00479]
[1641250024308,1.33029671,3758.3,3757.5,2.00479]
[1641250025111,2.00479,3758.2,3757.5,2.00479]
[1641250026414,3.50479,3758.2,3757.5,2.00479]
[1641250026612,2.00479,3758.2,3757.5,2.00479]
[1641250027411,1.33039759,3758.0,3757.5,2.00479]
[1641250027612,1.89639759,3758.0,3757.5,2.00479]
[1641250027912,0.566,3758.0,3757.5,2.00479]
[1641250028113,1.33041529,3757.9,3757.5,2.00479]
[1641250028316,2.83041529,3757.9,3757.5,2.00479]
[1641250028714,1.33041529,3757.9,3757.5,2.00479]
[1641250029313,2.83041529,3757.9,3757.5,2.00479]
[1641250029515,1.33041529,3757.9,3757.5,2.00479]
[1641250030316,0.566,3758.0,3757.5,2.00479]
[1641250031116,2.00479,3758.2,3757.5,2.00479]
[1641250032417,1.5,3758.1,3757.5,2.00479]
[1641250032617,2.00479,3758.2,3757.5,2.00479]
[1641250032618,1.33038166,3758.0,3757.6,0.128157]
[1641250032818,1.33038166,3758.0,3757.5,2.00479]
[1641250033020,2.83038166,3758.0,3757.5,2.00479]
[1641250033220,2.83038166,3758.0,3757.2,0.79697551]
[1641250034921,3.48098166,3758.0,3756.6,1.23489599]
[1641250035122,2.00479,3757.3,3756.5,2.00479]
[1641250035323,2.00479,3757.3,3756.5,2.132947]
[1641250035723,2.00479,3757.3,3755.1,16.6406]
[1641250035927,2.00479,3757.3,3756.2,1.06339995]
[1641250036124,2.00479,3757.3,3755.2,16.3669171]
[1641250036926,1.5,3757.1,3755.2,16.3669171]
[1641250037127,2.00479,3756.5,3755.7,2.00479]
[1641250038327,2.00479,3756.5,3755.8,0.03005803]
[1641250039029,2.00479,3756.5,3755.0,0.96213152]
[1641250039326,5.32368563,3756.8,3755.9,0.03005803]
[1641250039526,5.32368563,3756.8,3755.1,0.03005803]
[1641250039927,5.32368563,3756.8,3756.0,0.03005803]
[1641250040331,5.32368563,3756.8,3755.3,0.03005803]
[1641250040527,6.82368563,3756.8,3755.3,0.03005803]
[1641250040730,6.82368563,3756.8,3756.1,0.03005803]
[1641250040932,19.60450814,3756.8,3755.4,0.03005803]
[1641250041230,1.3309217,3756.5,3756.2,0.03005803]
[1641250041432,1.5,3756.3,3755.5,0.03005803]
[1641250041630,2.0303,3756.3,3755.5,0.03005803]
[1641250041831,0.5303,3756.3,3754.7,0.03005803]
[1641250042030,0.5303,3756.3,3754.6,0.87941747]
[1641250042031,1.5,3756.2,3755.6,0.03005803]
[1641250042230,1.5,3756.0,3754.8,0.03005803]
[1641250042632,1.5,3756.0,3755.7,0.03005803]
[1641250042830,2.83116088,3755.8,3754.9,0.03005803]
[1641250043029,2.83116088,3755.8,3754.6,0.87941747]
[1641250043239,2.00479,3755.4,3754.6,0.87941747]
[1641250043430,2.73249,3755.4,3754.6,0.87941747]
[1641250044031,2.73249,3755.4,3754.5,2.00479]
[1641250044032,1.5,3755.2,3754.5,2.00479]
[1641250044234,1.5,3754.8,3753.2,5.429]
[1641250044631,1.5,3754.8,3752.9,2.790659]
[1641250045031,1.5,3754.8,3753.0,0.79932852]
[1641250045231,1.5,3754.8,3753.2,2.00479]
[1641250045232,2.00479,3754.1,3753.2,2.00479]
[1641250045431,2.77159,3754.1,3753.2,2.00479]
[1641250047236,1.5,3754.0,3752.8,2.00479]
[1641250047435,1.5,3753.8,3752.9,3.48832375]
[1641250047635,1.5,3753.8,3753.1,2.790659]
[1641250048035,1.5,3753.8,3752.0,6.6731007]
[1641250048236,4.21139608,3753.4,3752.0,6.6731007]
[1641250048637,15.66139608,3753.4,3752.0,6.6731007]
[1641250048839,15.66139608,3753.4,3751.9,3.62381952]
[1641250049041,15.66139608,3753.4,3752.5,2.91623927]
[1641250049239,2.00479,3752.6,3752.5,2.91623927]
[1641250049441,4.32920532,3752.6,3752.5,2.91623927]
[1641250049939,2.996881,3752.6,3751.7,1.07173442]
[1641250050342,2.996881,3752.6,3751.6,1.5]
[1641250050343,1.33260306,3752.2,3751.0,4.1859885]
[1641250050641,1.5,3751.9,3751.0,4.1859885]
[1641250051244,4.00958,3751.1,3751.0,4.1859885]
[1641250051445,5.064571,3751.1,3751.0,4.1859885]
[1641250052047,5.064571,3751.1,3749.4,1.33276646]
[1641250052447,5.064571,3751.1,3748.9,2.00479]
[1641250053150,6.564571,3751.1,3748.9,2.00479]
[1641250053347,2.00479,3749.5,3749.2,2.77596557]
[1641250053647,2.00479,3749.9,3749.4,2.83276646]
[1641250053847,2.00479,3749.9,3749.6,1.5]
[1641250054448,2.00479,3749.9,3749.8,1.5]
[1641250055147,1.33276646,3751.6,3749.8,1.5]
[1641250055348,2.00479,3750.6,3750.1,1.5]
[1641250055548,2.00479,3750.6,3750.2,0.128157]
[1641250055947,30.77739651,3750.7,3750.5,1.5]
[1641250056147,15.051,3751.8,3750.5,1.5]
[1641250056349,15.051,3751.8,3750.6,1.08739395]
[1641250056547,15.4818,3752.2,3750.6,1.08739395]
[1641250056748,16.0409,3752.2,3750.6,1.08739395]
[1641250057348,2.00479,3751.6,3750.8,2.00479]
[1641250057547,2.69399,3751.6,3750.8,2.00479]
[1641250058449,2.69399,3751.6,3750.9,0.03009221]
[1641250059251,22.89263001,3751.0,3750.9,0.03009221]
[1641250059453,23.12262101,3751.0,3750.9,0.03009221]
[1641250060051,23.12262101,3751.0,3750.7,0.03009221]
[1641250060452,23.12262101,3751.0,3750.9,0.03009221]
[1641250060652,23.12262101,3751.0,3750.8,0.03009221]
[1641250061052,23.12262101,3751.0,3750.9,0.03009221]
[1641250061253,25.12741101,3751.0,3750.9,0.03009221]
[1641250061454,25.12741101,3751.0,3750.2,0.03009221]
[1641250063454,25.12741101,3751.0,3750.3,0.128157]
[1641250063854,25.12741101,3751.0,3750.4,0.03009221]
[1641250064755,24.89742001,3751.0,3750.2,0.03009221]
[1641250065557,2.00479,3751.0,3750.5,1.5]
[1641250065759,2.00479,3751.6,3750.9,1.5]
[1641250065958,2.00479,3751.6,3750.6,2.29805961]
[1641250066161,2.00479,3751.6,3750.6,2.13039813]
[1641250066359,2.00479,3751.6,3751.0,0.03009221]
[1641250066560,2.00479,3751.6,3750.9,1.5]
[1641250066761,2.00479,3751.6,3751.1,0.03009221]
[1641250067164,2.00479,3751.6,3751.0,0.03009221]
[1641250067462,2.00479,3751.6,3751.1,0.15824921]
[1641250067864,2.00479,3751.6,3751.2,0.03009221]
[1641250068065,2.00479,3752.2,3751.5,1.5]
[1641250068274,2.00479,3752.2,3751.8,1.5]